bitfinex/quotes_ETHUSD_20250904
["timestamp","ask_amount","ask_price","bid_price","bid_amount"]
[1756983663141,0.483574,4410.8,4410.1,1.671]
[1756983663329,0.483574,4410.7,4410.1,1.671]
[1756983663535,0.483574,4410.6,4410.1,1.671]
[1756983663736,0.483574,4410.5,4410.1,1.671]
[1756983663968,0.483574,4410.4,4410.1,1.671]
[1756983664260,0.483574,4410.3,4410.1,0.44499498]
[1756983664473,0.483574,4410.2,4410.1,0.44499498]
[1756983665062,0.482774,4410.2,4410.1,0.44499498]
[1756983665263,0.482774,4410.2,4410.1,1.671]
[1756983666347,2.26757773,4410.0,4409.4,1.671]
[1756983666648,2.72749294,4410.4,4409.5,4.165]
[1756983666880,0.9076,4410.4,4409.5,4.165]
[1756983667082,1.98202616,4410.6,4409.5,4.165]
[1756983667083,2.26726522,4410.6,4409.5,4.165]
[1756983667286,1.98202616,4410.7,4409.5,4.165]
[1756983667439,1.98202616,4410.8,4409.6,2.26776027]
[1756983667640,0.4475,4410.9,4409.5,4.165]
[1756983667942,4.69639472,4411.4,4410.4,2.26736614]
[1756983668143,2.26710373,4411.0,4410.5,5.834]
[1756983668352,2.26710373,4411.0,4409.2,2.26797377]
[1756983668353,3.17474289,4410.9,4410.6,5.834]
[1756983668571,0.9076,4410.8,4410.7,4.163]
[1756983668745,2.38055363,4411.3,4410.7,4.2766]
[1756983668952,0.1136,4411.3,4410.7,4.2766]
[1756983669783,0.4601,4411.4,4410.7,4.163]
[1756983669971,0.4601,4411.4,4411.0,0.1136]
[1756983670265,3.17450755,4411.3,4411.0,0.1136]
[1756983670571,0.9076,4411.3,4411.0,0.1136]
[1756983670781,0.1136,4411.6,4411.1,4.16]
[1756983671071,0.1136,4411.6,4411.2,1.671]
[1756983672798,2.72665196,4412.0,4411.2,1.671]
[1756983672799,0.1136,4412.0,4411.4,2.38045372]
[1756983672990,0.4601,4412.7,4411.2,1.671]
[1756983673194,0.5737,4412.7,4411.9,2.44738017]
[1756983673395,0.5737,4412.7,4412.0,5.823]
[1756983674203,2.83989423,4412.7,4412.0,5.823]
[1756983674374,2.37979423,4412.7,4412.0,5.823]
[1756983674571,0.1136,4412.7,4412.0,5.823]
[1756983674777,2.62159227,4413.0,4412.1,2.26644601]
[1756983675077,0.46915678,4413.0,4412.4,0.1136]
[1756983675271,0.46915678,4413.0,4412.5,4.147]
[1756983675693,0.02262714,4413.7,4412.9,0.1136]
[1756983675904,2.57673217,4413.0,4412.9,4.152]
[1756983676298,1.2183,4413.0,4412.8,4.156]
[1756983676495,0.9076,4412.9,4412.8,4.156]
[1756983676807,2.26598614,4413.1,4412.8,4.156]
[1756983677105,0.48625157,4413.0,4412.8,4.156]
[1756983677306,0.48625157,4412.9,4412.8,4.156]
[1756983677606,0.93375157,4412.9,4412.8,4.156]
[1756983677807,0.93375157,4412.9,4412.8,4.151]
[1756983678007,3.19983509,4412.9,4412.8,4.151]
[1756983678488,0.93375157,4412.9,4412.8,4.151]
[1756983678684,0.48625157,4412.9,4412.8,4.151]
[1756983679613,0.48625157,4412.9,4412.8,5.821]
[1756983680518,0.48625157,4412.9,4412.8,5.812]
[1756983680681,0.48625157,4412.9,4412.8,1.67]
[1756983680881,0.48625157,4412.9,4412.8,5.811]
[1756983681181,0.48625157,4412.9,4412.8,5.8782]
[1756983681392,0.48625157,4412.9,4412.8,1.67]
[1756983681606,1.70455157,4412.9,4412.8,3.498]
[1756983682313,0.48625157,4412.9,4412.8,3.498]
[1756983682808,0.48625157,4412.9,4412.8,1.67]
[1756983683008,0.48625157,4412.9,4412.8,5.81]
[1756983683812,0.48625157,4412.9,4412.8,5.8772]
[1756983684109,0.48625157,4412.9,4412.8,1.7372]
[1756983684314,0.48625157,4412.9,4412.8,5.804]
[1756983684715,0.48625157,4412.9,4412.8,8.13733488]
[1756983685301,2.71301914,4414.0,4413.1,2.26595809]
[1756983685505,0.48557458,4413.9,4413.2,6.39591708]
[1756983685708,0.48557458,4413.8,4413.3,4.129]
[1756983686018,0.48557458,4413.7,4413.4,0.1136]
[1756983686224,0.48557458,4413.6,4413.4,0.1136]
[1756983686403,0.48557458,4413.5,4413.4,0.1136]
[1756983687584,1.70387458,4413.5,4412.8,1.67]
[1756983687883,0.1136,4413.3,4412.9,4.124]
[1756983688078,0.48557458,4413.2,4412.9,4.124]
[1756983688294,0.3107,4413.0,4412.9,4.124]
[1756983688515,1.2183,4413.0,4412.9,4.124]
[1756983688892,0.4475,4413.0,4412.9,4.124]
[1756983689090,0.48542851,4413.2,4412.9,4.124]
[1756983689305,0.48542851,4413.3,4412.9,4.124]
[1756983689513,0.48542851,4413.4,4412.9,4.124]
[1756983689816,2.26587817,4413.3,4412.9,4.124]
[1756983690015,0.48542851,4413.2,4412.9,4.124]
[1756983690316,0.1136,4413.9,4413.2,0.1808]
[1756983690486,0.1136,4413.9,4413.3,4.12]
[1756983690899,0.5747,4414.2,4413.6,0.1136]
[1756983691097,0.1136,4414.2,4413.7,5.787]
[1756983691617,0.9484,4414.5,4413.7,5.787]
[1756983691927,2.26536289,4414.4,4413.7,5.787]
[1756983692216,3.32727407,4414.5,4413.7,5.787]
[1756983692426,0.1136,4414.5,4413.7,5.787]
[1756983692797,0.1136,4414.7,4414.1,0.1136]
[1756983693105,2.37877861,4414.7,4414.2,4.114]
[1756983693304,2.72632208,4414.6,4414.2,4.114]
[1756983693507,3.21362208,4414.6,4414.2,4.114]
[1756983693693,0.9484,4414.6,4414.2,4.114]
[1756983693897,2.37876073,4414.7,4414.2,4.114]
[1756983694117,2.72715896,4414.9,4414.2,4.114]
[1756983694118,0.4621,4414.9,4414.2,4.114]
[1756983694302,0.4621,4414.9,4414.4,0.1136]
[1756983694511,0.001,4414.9,4414.5,1.67]
[1756983694696,0.001,4414.9,4414.6,4.109]
[1756983694889,2.26606831,4414.9,4414.6,4.109]
[1756983695290,0.792,4414.6,4412.0,0.4882]
[1756983695491,0.1136,4413.5,4412.7,1.7836]
[1756983695727,2.37938888,4413.5,4412.8,0.363]
[1756983695908,2.26586557,4413.4,4412.8,0.363]
[1756983696102,0.4611,4414.3,4412.8,0.363]
[1756983696304,0.4873,4414.2,4412.9,2.358]
[1756983696493,2.26567932,4413.7,4412.9,2.358]
[1756983696693,2.72677932,4413.7,4412.9,2.358]
[1756983696894,2.2657258,4413.6,4412.9,2.358]
[1756983697520,0.4611,4413.7,4412.9,2.358]
[1756983697903,2.26572841,4413.6,4412.9,2.358]
[1756983698100,0.4611,4413.7,4412.9,2.358]
[1756983698306,2.26572947,4413.6,4412.9,2.358]
[1756983698622,2.26591551,4413.3,4413.0,4.115]
[1756983698824,0.4611,4413.7,4413.0,4.115]
[1756983698825,0.4611,4413.2,4413.0,4.115]
[1756983699326,0.4611,4413.7,4412.7,1.67]
[1756983699526,2.26591741,4413.3,4412.8,4.114]
[1756983699702,0.4611,4413.2,4412.8,4.114]
[1756983700101,2.75296403,4413.8,4412.9,4.112]
[1756983700498,2.26574664,4413.6,4412.9,4.112]
[1756983700693,0.4873,4413.8,4412.9,4.112]
[1756983701098,2.26574136,4413.6,4412.9,4.112]
[1756983701318,0.4611,4413.7,4412.9,4.112]
[1756983701526,0.4611,4413.7,4412.7,1.67]
[1756983701527,2.26572412,4413.6,4412.7,1.67]
[1756983701718,2.26586803,4413.4,4412.7,1.67]
[1756983701918,0.4611,4413.3,4412.8,4.106]
[1756983702119,0.3149,4412.9,4412.8,4.106]
[1756983702434,0.776,4412.9,4412.8,4.106]
[1756983702933,1.2633,4412.9,4412.8,4.106]
[1756983703146,0.4873,4413.5,4412.8,4.106]
[1756983703342,0.9484,4413.5,4412.8,4.106]
[1756983703547,2.26603374,4413.0,4412.8,4.106]
[1756983703842,2.26603374,4413.0,4412.7,1.67]
[1756983704043,0.48769411,4412.9,4412.8,4.101]
[1756983704230,0.80259411,4412.9,4412.8,4.101]
[1756983704431,0.48769411,4412.9,4412.8,4.101]
[1756983704603,2.75363293,4413.2,4412.8,4.099]
[1756983704806,0.48769411,4413.1,4412.8,4.099]
[1756983705120,0.48769411,4413.0,4412.8,4.099]
[1756983705304,2.26582676,4413.5,4412.9,0.0672]
[1756983705504,0.48787645,4413.4,4412.9,0.0672]
[1756983705815,0.48787645,4413.3,4413.2,2.26592948]
[1756983706017,0.48787645,4413.3,4413.2,6.91832948]
[1756983706249,0.48787645,4414.3,4414.2,2.26541615]
[1756983706409,0.48773198,4414.6,4414.2,8.09756687]
[1756983706603,0.48773198,4414.5,4414.3,2.26534215]
[1756983706805,0.48771039,4414.6,4414.5,2.2652622]
[1756983707100,0.001,4414.7,4414.6,2.26521089]
[1756983707418,0.48848986,4414.7,4414.6,2.26521089]
[1756983707625,0.001,4414.7,4414.6,2.33241089]
[1756983708051,0.001,4414.7,4414.6,0.0672]
[1756983708242,0.001,4414.7,4414.6,6.42741089]
[1756983708557,0.001,4414.7,4414.6,6.91561089]
[1756983708750,0.001,4414.7,4414.6,6.95761089]
[1756983711047,0.001,4414.7,4414.6,10.74961089]
[1756983711878,0.001,4414.7,4414.6,10.70761089]
[1756983712030,0.001,4414.7,4414.6,10.74961089]
[1756983712236,0.001,4414.7,4414.6,6.65461089]
[1756983712437,0.001,4414.7,4414.6,10.73861089]
[1756983713944,0.4611,4418.0,4414.7,5.26512193]
[1756983714264,0.9484,4417.3,4414.9,3.792]
[1756983714564,0.4611,4417.2,4416.6,2.26415189]
[1756983714753,25.97569655,4418.6,4415.5,3.0]
[1756983714754,2.26307748,4418.8,4416.8,2.26408259]
[1756983714951,0.4611,4417.6,4416.9,5.772]
[1756983715367,0.4873,4417.8,4416.9,5.772]
[1756983715567,0.4873,4417.8,4417.3,2.26382631]
[1756983715767,0.9484,4417.8,4417.3,6.36582631]
[1756983715944,0.4611,4417.8,4417.3,6.36582631]
[1756983716267,0.0002,4417.4,4417.3,6.36582631]
[1756983716477,0.0002,4417.4,4417.3,6.43302631]
[1756983717041,0.0002,4417.4,4417.3,6.92122631]
[1756983717246,0.0002,4417.4,4417.3,6.43302631]
[1756983717741,0.0002,4417.4,4417.3,6.36282631]
[1756983717944,1.2635,4417.4,4416.9,1.669]
[1756983718148,0.9484,4417.3,4417.0,4.097]
[1756983718362,0.3151,4417.4,4417.0,4.097]
[1756983718363,0.3149,4417.1,4417.0,4.097]
[1756983718543,1.2633,4417.1,4417.0,4.097]
[1756983718745,1.2633,4417.1,4416.9,3.93303129]
[1756983719043,0.4873,4417.0,4416.9,1.669]
[1756983719243,0.8022,4417.0,4416.9,5.764]
[1756983719572,0.0002,4417.4,4416.9,5.8312]
[1756983720185,0.0002,4417.4,4416.9,1.7362]
[1756983720370,0.0002,4417.4,4417.1,2.26392882]
[1756983720550,0.0002,4417.4,4417.3,2.26382631]
[1756983720745,0.0002,4417.4,4417.3,6.42302631]
[1756983720945,0.0002,4417.4,4417.3,6.92002631]
[1756983721251,0.0002,4417.4,4417.3,6.96202631]
[1756983721453,0.0002,4417.4,4417.3,6.42302631]
[1756983721853,0.0002,4417.4,4417.3,10.75402631]
[1756983722057,0.0002,4417.4,4417.3,10.71202631]
[1756983722574,0.0002,4417.4,4417.3,10.86682631]
[1756983722782,0.0002,4417.4,4417.3,16.08082631]
[1756983724591,0.0002,4417.4,4417.3,16.03682631]
[1756983725256,2.26256433,4419.8,4417.3,16.03682631]
[1756983725257,3.92950073,4421.9,4417.8,2.26353641]
[1756983725466,0.4576,4419.3,4417.9,1.668]
[1756983725668,0.9499,4419.2,4418.0,4.094]
[1756983725867,0.9499,4419.1,4419.0,0.1128]
[1756983726191,1.244,4419.1,4419.0,5.8748]
[1756983727480,1.244,4419.1,4419.0,8.13775541]
[1756983727651,1.244,4419.1,4419.0,5.8748]
[1756983727847,0.4576,4419.5,4419.4,2.26275059]
[1756983728049,0.5704,4419.9,4419.5,2.26265704]
[1756983728258,0.1128,4419.9,4419.6,4.089]
[1756983728492,0.2941,4419.7,4419.6,4.089]
[1756983728694,0.7517,4419.7,4419.6,6.3516482]
[1756983728916,0.4576,4420.2,4419.8,2.26254581]
[1756983729179,0.4576,4420.1,4419.9,4.087]
[1756983729383,0.4923,4420.4,4420.2,2.26229983]
[1756983729692,0.2941,4420.0,4419.9,3.93046005]
[1756983729890,0.2941,4420.0,4419.9,8.01746005]
[1756983730198,0.7517,4420.0,4419.9,8.01746005]
[1756983730880,1.244,4420.0,4419.9,5.754]
[1756983731667,1.244,4420.0,4419.9,5.752]
[1756983733614,3.50644343,4420.0,4419.9,4.077]
[1756983733806,1.244,4420.0,4419.1,1.667]
[1756983734007,2.2627429,4419.5,4419.2,3.629]
[1756983734304,0.2941,4419.3,4419.2,3.629]
[1756983734611,1.244,4419.3,4419.2,3.629]
[1756983736614,1.244,4419.3,4419.2,4.071]
[1756983736987,1.244,4419.3,4418.2,1.667]
[1756983737322,2.26325404,4418.5,4418.3,4.07]
[1756983737494,3.50726271,4418.4,4418.3,4.07]
[1756983737893,2.26331764,4418.3,4418.0,1.667]
[1756983738123,0.9499,4418.3,4418.1,4.07]
[1756983738321,1.244,4418.2,4418.0,1.667]
[1756983738622,66.57326264,4425.5,4418.0,1.667]
[1756983738623,0.4576,4418.5,4418.1,4.068]
[1756983738834,0.4576,4418.4,4418.1,4.068]
[1756983739324,0.4576,4418.4,4418.1,4.1808]
[1756983739523,0.6051,4418.7,4418.1,4.1808]
[1756983739715,2.74764487,4418.6,4418.1,4.1808]
[1756983739893,0.9499,4418.5,4418.1,4.1808]
[1756983740092,0.2941,4418.2,4418.1,0.1128]
[1756983740727,1.244,4418.2,4418.0,1.667]
[1756983740915,2.55746517,4418.2,4418.1,4.063]
[1756983741115,0.77899308,4418.2,4418.1,4.063]
[1756983741315,0.77819308,4418.2,4418.1,4.063]
[1756983741638,1.72809308,4418.2,4418.1,4.061]
[1756983742431,0.48489308,4418.2,4418.1,6.5057164]
[1756983742589,0.48554193,4418.9,4418.1,0.1128]
[1756983742926,2.72077011,4418.6,4418.4,0.1128]
[1756983743220,2.26326545,4418.4,4418.0,1.667]
[1756983743523,2.26336517,4418.2,4418.1,4.1728]
[1756983743823,1.72989993,4418.2,4418.1,4.1728]
[1756983744325,3.9932651,4418.2,4418.1,4.1728]
[1756983744811,1.72989993,4418.2,4418.1,4.1728]
[1756983745395,0.94349993,4418.2,4418.1,4.1728]
[1756983745590,0.48589993,4418.2,4418.1,4.1728]
[1756983746124,0.48589993,4418.2,4418.1,4.2413]
[1756983746425,1.72989993,4418.2,4418.1,4.1668]
[1756983746792,3.9932651,4418.2,4418.1,0.1128]
[1756983747327,5.2634164,4418.1,4418.0,1.667]
[1756983747630,6.69921633,4418.1,4418.0,5.719]
[1756983747924,6.99331633,4418.1,4418.0,5.719]
[1756983748927,2.2635701,4417.8,4417.7,0.1128]
[1756983749132,2.26377189,4417.5,4417.4,4.048]
[1756983749304,1.23759993,4417.5,4417.4,4.048]
[1756983749509,3.50132375,4417.5,4417.4,4.048]
[1756983749709,3.99362375,4417.5,4417.4,4.048]
[1756983750512,3.99362375,4417.5,4417.4,3.998]
[1756983753242,3.50132375,4417.5,4417.4,3.998]
[1756983753945,0.48589993,4417.5,4417.4,3.998]
[1756983754146,0.48589993,4417.8,4417.4,4.0665]
[1756983754351,0.48589993,4417.7,4417.4,4.1793]
[1756983754651,2.69621929,4418.1,4417.4,6.44307027]
[1756983754849,0.48575341,4418.0,4417.4,6.44307027]
[1756983755019,0.48575341,4417.9,4417.4,6.44307067]
[1756983755214,3.0,4418.6,4417.4,6.44307067]
[1756983755215,0.48575341,4417.8,4417.7,2.26362134]
[1756983755440,2.69606695,4418.4,4417.8,0.1128]
[1756983755618,0.48575341,4418.3,4417.9,4.04]
[1756983755826,0.48575341,4418.2,4417.9,6.30347016]
[1756983756144,0.48575341,4418.6,4418.2,0.1128]
[1756983756340,0.48575341,4418.5,4418.3,4.039]
[1756983756527,0.48575341,4418.4,4418.3,4.039]
[1756983758341,0.48575341,4418.7,4418.3,4.039]
[1756983758527,0.48575341,4418.6,4418.3,4.039]
[1756983758720,0.91855341,4418.6,4418.3,4.039]
[1756983758927,0.48575341,4418.5,4418.3,6.30230645]
[1756983759124,0.48575341,4418.9,4418.4,2.2291]
[1756983759328,0.68038705,4419.0,4418.9,2.26300663]
[1756983759559,0.4328,4419.7,4419.1,2.26289202]
[1756983759726,0.48567792,4419.6,4419.2,4.032]
[1756983759929,0.48567792,4419.6,4419.2,6.363353]
[1756983760130,0.48567792,4419.9,4419.2,6.363353]
[1756983760341,0.48567792,4420.0,4419.2,6.363353]
[1756983760530,0.4338,4420.1,4419.2,6.363353]
[1756983760725,0.91947792,4420.1,4419.2,6.363353]
[1756983761056,0.48567792,4420.0,4419.2,6.363353]
[1756983761221,0.48567792,4420.0,4418.4,1.7108]
[1756983761222,1.2395,4419.3,4417.3,2.26777665]
[1756983761426,1.41488428,4419.2,4417.7,2.26360662]
[1756983761621,2.26306217,4418.8,4417.8,4.029]
[1756983761853,0.4328,4418.7,4417.9,4.029]
[1756983762030,0.4328,4418.7,4418.0,2.26346763]
[1756983762233,0.4328,4418.7,4418.1,2.26338505]
[1756983762458,0.4328,4418.7,4417.9,4.029]
[1756983762752,0.48625154,4419.0,4418.4,2.26321572]
[1756983762957,0.4338,4419.3,4416.3,5.212]
[1756983762958,0.3096,4418.5,4416.3,5.212]
[1756983763124,0.3096,4418.5,4417.4,5.695]
[1756983763325,0.4328,4418.4,4417.4,5.695]
[1756983763660,3.4328,4418.9,4418.3,0.0685]
[1756983763856,23.71349201,4420.1,4418.4,4.027]
[1756983763857,0.48654884,4418.8,4418.4,4.027]
[1756983764056,0.68047038,4418.6,4418.4,6.29025549]
[1756983764273,0.4338,4419.3,4418.6,2.26315986]
[1756983764435,2.2628938,4419.2,4418.4,6.29022062]
[1756983764638,0.3096,4418.5,4418.4,4.027]
[1756983764959,3.50171149,4418.5,4418.4,4.027]
[1756983765144,3.50171149,4418.5,4418.1,1.667]
[1756983765351,2.26331394,4418.3,4418.1,1.643]
[1756983765547,0.3096,4418.2,4418.1,1.643]
[1756983765728,0.7424,4418.2,4418.1,1.643]
[1756983766562,2.2634164,4418.1,4417.8,4.025]
[1756983766858,2.57231886,4417.9,4417.8,4.024]
[1756983767159,0.4328,4418.6,4417.8,4.0938]
[1756983767564,3.0,4418.5,4417.8,6.35736988]
[1756983767965,3.0,4418.5,4417.9,2.26351885]
[1756983768151,5.26321661,4418.5,4417.8,6.28756697]
[1756983768336,3.0,4418.5,4417.8,6.28756697]
[1756983768533,0.3096,4417.9,4417.3,0.004]
[1756983768763,23.71249201,4417.7,4417.3,0.004]
[1756983768934,0.1128,4417.5,4417.3,0.004]
[1756983769442,0.09074771,4417.6,4417.3,0.004]
[1756983769642,2.26368944,4417.6,4417.3,0.1168]
[1756983769845,0.5456,4417.9,4417.3,0.1168]
[1756983770059,0.1128,4417.9,4417.3,0.1168]
[1756983770635,0.4328,4418.6,4417.3,0.1168]
[1756983770965,0.4328,4418.6,4417.8,0.1128]
[1756983770966,0.68044878,4418.5,4417.8,0.1128]
[1756983771152,0.4961,4418.8,4418.2,0.1128]
[1756983771346,2.37591134,4418.7,4418.2,0.1128]
[1756983771545,2.80871134,4418.7,4418.2,0.1128]
[1756983771869,2.80874064,4418.7,4418.2,0.1128]
[1756983772033,2.26317618,4418.6,4418.2,0.1128]
[1756983772229,2.3759188,4418.7,4418.2,0.1128]
[1756983772429,2.69596309,4418.6,4418.2,0.1128]
[1756983772666,0.1128,4418.7,4418.2,0.1128]
[1756983773034,0.1128,4419.1,4418.2,0.1128]
[1756983773238,0.6099,4419.1,4418.2,0.1128]
[1756983773437,1.09669158,4419.1,4418.2,0.1128]
[1756983773671,3.18254699,4419.0,4418.2,0.1128]
[1756983773966,2.26373506,4417.5,4416.2,0.4926]
[1756983774174,2.28640221,4417.4,4416.4,0.004]
[1756983774476,6.50227507,4417.4,4416.4,0.004]
[1756983775659,6.50227507,4417.4,4416.4,2.26828537]
[1756983776264,6.50227507,4417.4,4416.4,0.004]
[1756983776775,6.50227507,4417.4,4416.4,2.26827762]
[1756983777350,6.50227507,4417.4,4416.5,2.26423337]
[1756983777665,0.7424,4417.4,4416.6,0.02264185]
[1756983777866,2.26364083,4417.7,4417.0,4.048]
[1756983778055,0.09074174,4417.7,4417.0,6.31197416]
[1756983778464,3.0,4418.3,4417.0,6.31197416]
[1756983778465,0.9299,4419.3,4417.6,0.0698]
[1756983778650,0.48706803,4419.2,4417.7,5.715]
[1756983778849,2.26296487,4419.0,4418.1,2.26336751]
[1756983779276,2.26285595,4419.2,4418.2,2.26335923]
[1756983779474,0.48703798,4419.1,4418.2,2.26335923]
[1756983779660,2.26300419,4419.0,4418.2,2.26335923]
[1756983779986,2.26290626,4419.1,4417.9,2.26346927]
[1756983780148,3.0,4419.2,4417.7,5.715]
[1756983780354,3.48701878,4419.1,4418.3,2.26327665]
[1756983780591,0.4338,4419.3,4418.5,2.26321149]
[1756983780883,0.001,4419.3,4418.5,4.00101149]
[1756983781084,0.001,4419.3,4418.5,4.49941149]
[1756983781282,0.001,4419.3,4418.5,4.54301149]
[1756983781585,0.001,4419.3,4418.5,4.49941149]
[1756983782654,0.001,4419.3,4418.5,4.00101149]
[1756983782969,0.4342,4419.2,4418.5,5.737]
[1756983783175,0.4342,4419.2,4418.5,8.00021149]
[1756983783988,0.4342,4419.2,4418.5,8.11301149]
[1756983785265,0.741,4418.6,4418.5,5.8418]
[1756983785466,0.4352,4418.6,4418.5,5.8418]
[1756983787482,0.001,4418.6,4418.5,5.8418]
[1756983787671,0.001,4418.6,4418.5,8.17481149]
[1756983788873,0.001,4418.6,4418.5,5.8418]
[1756983789072,0.001,4418.6,4418.5,8.10501149]
[1756983791784,0.001,4418.6,4418.5,8.17481149]
[1756983791988,0.001,4418.6,4418.5,8.10501149]
[1756983792290,0.7402,4418.6,4418.5,5.8418]
[1756983792691,0.4344,4418.6,4418.5,5.8418]
[1756983793060,0.4344,4418.6,4418.5,8.10501149]
[1756983793575,0.0002,4418.6,4418.5,8.10501149]
[1756983794991,0.0002,4418.6,4418.5,8.17481149]
[1756983796588,0.0002,4418.6,4418.5,8.10501149]
[1756983796757,0.7402,4418.6,4418.5,1.7808]
[1756983796962,1.2195,4418.6,4418.5,5.8138]
[1756983797185,0.0002,4418.6,4418.5,8.07701149]
[1756983797558,0.0002,4418.6,4418.5,5.8138]
[1756983797988,0.7402,4418.6,4418.5,5.8138]
[1756983798379,0.7402,4418.6,4418.5,5.8108]
[1756983798587,1.2195,4418.6,4418.5,5.8108]
[1756983799079,1.2195,4418.6,4418.5,5.8078]
[1756983799470,1.2195,4418.6,4418.5,5.695]
[1756983799471,3.48266027,4418.6,4418.5,5.695]
[1756983800700,1.2195,4418.6,4418.5,5.695]
[1756983800901,3.48266027,4418.6,4418.5,5.695]
[1756983801393,0.7402,4418.6,4418.5,5.695]
[1756983802109,1.2195,4418.6,4418.5,5.695]
[1756983802670,0.0002,4418.6,4418.5,5.695]
[1756983802969,0.0002,4418.6,4418.5,5.8078]
[1756983803479,0.0002,4418.6,4418.5,8.07101149]
[1756983803668,0.0002,4418.6,4418.5,8.14081149]
[1756983804602,0.92234411,4419.3,4418.5,8.14081149]
[1756983804603,0.001,4419.3,4419.2,2.262853]
[1756983804802,0.001,4419.3,4419.2,9.892653]
[1756983806671,0.001,4419.3,4419.2,10.684653]
[1756983808095,0.001,4419.3,4419.2,15.895653]
[1756983812997,0.001,4419.3,4419.2,15.925653]
[1756983813199,0.463,4421.7,4420.0,3.05444343]
[1756983813513,0.463,4421.7,4420.0,11.77506786]
[1756983813710,0.463,4421.7,4420.0,12.35084343]
[1756983814612,0.463,4421.7,4420.0,12.46364343]
[1756983814933,0.001,4420.2,4420.0,12.46364343]
[1756983815277,0.001,4420.2,4420.0,12.42004343]
[1756983815478,0.001,4423.5,4420.1,3.0]
[1756983815692,0.463,4422.4,4421.2,0.792]
[1756983815883,0.463,4422.4,4422.3,2.26126676]
[1756983816083,0.463,4422.4,4422.3,8.08206676]
[1756983816084,0.7655,4422.4,4422.3,8.08206676]
[1756983816287,1.2655,4422.4,4422.3,8.08206676]
[1756983817119,1.2655,4422.4,4422.3,4.1518]
[1756983817284,1.2655,4422.4,4422.3,3.77806094]
[1756983817684,1.2647,4422.4,4422.3,0.1128]
[1756983817893,1.2647,4422.4,4422.3,4.1508]
[1756983820608,1.2647,4422.4,4422.3,0.1128]
[1756983820926,1.2647,4422.4,4422.3,4.1438]
[1756983821299,1.2647,4422.4,4422.3,6.40506676]
[1756983821503,0.1128,4423.3,4422.9,2.26094159]
[1756983821727,0.3025,4423.0,4422.9,2.26096]
[1756983822000,0.3025,4423.0,4422.9,6.28996]
[1756983822231,0.3025,4423.0,4422.9,6.40276]
[1756983822448,0.7655,4423.0,4422.9,6.40276]
[1756983822797,0.464,4423.4,4423.3,2.26075554]
[1756983823119,0.501,4423.4,4423.3,6.29075554]
[1756983823428,0.8035,4423.4,4423.3,6.40355554]
[1756983823644,1.2665,4423.4,4423.3,6.40355554]
[1756983823807,1.2665,4423.4,4423.3,4.1428]
[1756983824395,1.2665,4423.4,4423.3,0.1128]
[1756983824642,3.52720443,4423.4,4423.3,1.8028]
[1756983824800,2.26075554,4423.3,4423.2,1.666]
[1756983824998,3.22375554,4423.3,4423.2,4.961]
[1756983825306,3.52625554,4423.3,4423.2,4.961]
[1756983826398,0.7655,4423.3,4423.2,4.961]
[1756983826612,0.7655,4423.3,4423.2,7.33460665]
[1756983826825,1.2655,4423.3,4423.2,5.0738]
[1756983827207,1.2655,4423.3,4423.2,7.33460665]
[1756983827909,1.2655,4423.3,4423.2,5.8058]
[1756983829133,1.2655,4423.3,4423.2,8.06660665]
[1756983829609,0.7655,4423.3,4423.2,8.06660665]
[1756983829805,0.001,4423.4,4423.2,8.06660665]
[1756983829806,0.001,4423.4,4423.2,1.7788]
[1756983830012,0.464,4423.4,4423.3,4.021]
[1756983830209,0.464,4423.4,4423.3,6.28175554]
[1756983830538,0.001,4423.4,4423.3,6.28175554]
[1756983831120,0.001,4423.4,4423.3,6.53335554]
[1756983832351,0.001,4423.4,4423.2,0.1128]
[1756983832352,1.2665,4423.4,4423.2,0.1128]
[1756983832553,0.3035,4423.4,4423.3,5.683]
[1756983833042,1.2665,4423.4,4423.3,7.94375554]
[1756983833355,0.7665,4423.4,4423.3,5.683]
[1756983833641,0.7665,4423.4,4423.3,7.94375554]
[1756983834910,0.7665,4423.4,4423.3,5.683]
[1756983835106,0.7665,4423.4,4423.3,7.94375554]
[1756983835310,0.7665,4423.4,4423.3,5.683]
[1756983835511,1.2665,4423.4,4423.3,5.683]
[1756983835723,1.2665,4423.4,4423.3,1.666]
[1756983835908,1.2665,4423.4,4423.3,5.675]
[1756983836112,0.7665,4423.4,4423.3,7.93575554]
[1756983836343,0.7665,4423.4,4423.3,5.675]
[1756983837022,0.7665,4423.4,4423.3,7.93575554]
[1756983837420,0.001,4423.4,4423.3,8.18735554]
[1756983838458,0.001,4423.4,4423.3,7.94875554]
[1756983840244,0.001,4423.4,4423.3,8.20035554]
[1756983840627,0.001,4423.4,4423.3,11.67805554]
[1756983842217,0.001,4423.4,4423.3,12.47005554]
[1756983842418,0.001,4423.4,4423.3,12.62725554]
[1756983842835,0.001,4423.4,4423.3,12.47005554]
[1756983843147,0.0002,4423.4,4423.3,12.47005554]
[1756983843535,0.0002,4423.4,4423.3,7.17835554]
[1756983843735,0.0002,4423.4,4423.3,6.92675554]
[1756983843945,0.0002,4423.4,4423.3,10.93775554]
[1756983844618,0.0002,4423.4,4423.3,7.17835554]
[1756983844817,0.0002,4423.4,4423.3,11.18935554]
[1756983845317,0.0002,4423.4,4423.3,6.92675554]
[1756983845537,0.0002,4423.4,4423.3,10.93575554]
[1756983847331,0.3005,4423.4,4423.3,5.673]
[1756983847533,0.7531,4423.4,4423.3,8.04655554]
[1756983847731,1.2483,4423.4,4423.3,5.7818]
[1756983847965,0.0002,4423.4,4423.3,8.04255554]